{"text_format":"3","workbook":"xlsx","n_sheets":7,"sheets":["μουσική","θέατρο","εικαστικά","χορός","παρ.δρασ.παιδ.εφηβ.","μουσικό θέατρο","Φύλλο5"],"not_rendered":{"defined_names":1},"read":"whole","date_system":"1900"}

{"sheet":"μουσική","index":0,"n_rows":29,"n_cols":8,"rows_kept":29,"merged":[[0,4,0,6]]}
["Α/Α","ΕΤΑΙΡΕΙΑ ΑΜΚΕ ","ΤΙΤΛΟΣ","Α.Μ.","ΚΑΤΗΓΟΡΙΑ ΧΡΗΜΑΤΟΔΟΤΗΣΗΣ",null,null,"ΧΩΡΟΙ"]
[{"$nulls":4},{"v":15000,"d":"15,000.00 €"},{"v":30000,"d":"30,000.00 €"},{"v":60000,"d":"60,000.00 €"}]
[1,"ERGON ENSEMBLE - ΑΣΤΙΚΗ ΜΗ ΚΕΡΔΟΣΚΟΠΙΚΗ ΕΤΑΙΡΙΑ","\"ΛΟΓΟΣ 132\"",191,null,{"v":30000,"d":"30,000.00 €"},null,"ΑΡΧΑΙΟ ΘΕΑΤΡΟ ΜΕΣΣΗΝΗΣ"]
[2,"ΕΝ ΧΟΡΔΑΙΣ","Το Βυζάντιο μετά το Βυζάντιο Η βυζαντινή κληρονομιά στη σύγχρονη μουσική και λογοτεχνική δημιουργία ",237,null,{"v":30000,"d":"30,000.00 €"},null,"ΡΟΤΟΝΤΑ"]
[3,"Androidus Project Tank,ΑΣΤΙΚΗ ΜΗ ΚΕΡΔΟΣΚΟΠΙΚΗ ΕΤΑΙΡΕΙΑ ΚΑΛΛΙΕΡΓΕΙΑ, ΔΙΑΔΟΣΗ, ΠΡΟΩΘΗΣΗ ΚΑΙΝΟΤΟΜΩΝ ΙΔΕΩΝ ΚΑΙ ΚΑΛΩΝ ΤΕΧΝΩΝ","ΤΟ ΠΕΡΑΜΑΤΙΣΜΑ",3596,null,{"v":30000,"d":"30,000.00 €"},null,"ΣΠΗΛΑΙΟ ΙΔΑΙΟΥ ΑΝΔΡΟΥ"]
[4,"ΟΜΑΖ ΑΣΤΙΚΗ ΜΗ ΚΕΡΔΟΣΚΟΠΙΚΗ ΕΤΑΙΡΕΙΑ","Παρόλες - Πώς τα τραγούδια του χθες συνομιλούν με το σήμερα;",4124,{"v":15000,"d":"15,000.00 €"},null,null,"ΚΟΝΑΚΙ ΠΡΟΔΡΟΜΟΥ ΣΤΗΝ ΚΑΡΔΙΤΣΑ"]
[5,"ΤΕΧΝΕΣ ΣΤΟ ΜΙΞΕΡ - ΠΑΡΑΣΤΑΤΙΚΕΣ ΤΕΧΝΕΣ ΑΣΤΙΚΗ ΜΗ ΚΕΡΔΟΣΚΟΠΙΚΗ ΕΤΑΙΡΕΙΑ","\"Μεταμορφώσεων το ανάγνωσμα\"",4310,null,{"v":30000,"d":"30,000.00 €"},null,"ΑΡΧΑΙΟΛΟΓΙΚΟΣ ΧΩΡΟΣ ΑΠΤΕΡΑΣ"]
[6,"ΜΟΥΣΙΚΟ ΦΕΣΤΙΒΑΛ ΧΙΟΥ ΑΣΤΙΚΗ ΜΗ ΚΕΡΔΟΣΚΟΠΙΚΗ ΕΤΑΙΡΙΑ","ΧΙΟΣ, ALLER/RETOUR",4337,null,{"v":30000,"d":"30,000.00 €"},null,"ΟΘΩΜΑΝΙΚΑ ΛΟΥΤΡΑ ΚΑΣΤΡΟΥ ΧΙΟΥ"]
[7,"Τζαζ Δημοκρατία - ΑΜΚΕ","\"Πατέρας & Γιός: Διάλογος μέσα από την Τζαζ - Το Βάρος της Κληρονομιάς\"",5349,{"v":15000,"d":"15,000.00 €"},null,null,"ΡΩΜΑΪΚΗ ΑΓΟΡΑ ΑΡΧ/ΚΟΥ ΧΩΡΟΥ ΔΕΛΦΩΝ"]
[8,"ΔΗΜΙΟΥΡΓΙΚΟ ΜΟΥΣΙΚΟ ΝΗΣΙ ΑΣΤΙΚΗ ΜΗ ΚΕΡΔΟΣΚΟΠΙΚΗ ΕΤΑΙΡΕΙΑ","\"Δεν είναι εποχή για ποίηση…\"",5363,null,{"v":30000,"d":"30,000.00 €"},null,"ΜΟΝΗ ΚΟΙΜΗΣΕΩΣ ΘΕΟΤΟΚΟΥ ΔΕΣΚΑΤΗΣ ΓΡΕΒΕΝΩΝ"]
[9,"Κίτρον Α.Μ.Κ.Ε.","ΜΝΗΜΗΣ ΠΕΡΑΣΜΑΤΑ",6979,null,{"v":30000,"d":"30,000.00 €"},null,"ΑΡΧΟΝΤΙΚΟ ΤΣΙΑΤΣΑΠΑ ΚΑΣΤΟΡΙΑ"]
[10,"«THEAMA PRODUCTION» Αστική μη κερδοσκοπική εταιρεία","\"Έλα και τράβα τη σκεπή, να φύγω να πετάξω...\"",8714,null,{"v":30000,"d":"30,000.00 €"},null,"ΚΕΡΚΥΡΑ ΠΑΛΑΙΟ ΦΡΟΥΡΙΟ "]
[11,"OLIPOLI ΑΣΤΙΚΗ ΜΗ ΚΕΡΔΟΣΚΟΠΙΚΗ ΕΤΑΙΡΕΙΑ","Πόσος κόσμος χωράει στο μπαλκόνι μου",17998,{"v":15000,"d":"15,000.00 €"},null,null,"ΙΣΛΑΧΑΝΕ"]
[12,"ΔΙΟΔΟΣ ΠΟΛΙΤΙΣΤΙΚΗ ΚΙΝΗΣΗ ΑΣΤΙΚΗ ΜΗ ΚΕΡΔΟΣΚΟΠΙΚΗ ΕΤΑΙΡΕΙΑ","ΤΡΑΓΟΥΔΙ ΑΧΕΙΡΟΠΟΙΗΤΟ Ο κυρ Αλέξανδρος Παπαδιαμάντης ανάμεσα μας",18023,null,{"v":30000,"d":"30,000.00 €"},null,"ΑΘΑΝΑΣΑΚΕΙΟ ΑΡΧΑΙΟΛΟΓΙΚΟ ΜΟΥΣΕΙΟ ΒΟΛΟΥ"]
[13,"Piandaemonium Αστική Μη Κερδοσκοπική Εταιρεία","Το Άξιον Εστί",20800,null,null,{"v":60000,"d":"60,000.00 €"},"ΘΕΑΤΡΟ  ΑΡΧ/ΚΟΥ ΧΩΡΟΥ ΔΙΟΥ"]
[14,"SYRIX PRODUCTIONS ΑΣΤΙΚΗ ΜΗ ΚΕΡΔΟΣΚΟΠΙΚΗ ΕΤΑΙΡΙΑ","Το Κάστρο της Μυτιλήνης Χτίζοντας πάνω στο παρελθόν",20805,null,{"v":30000,"d":"30,000.00 €"},null,"ΚΑΣΤΡΟ ΜΥΤΙΛΗΝΗΣ"]
[15,"Ομάδα Μουσικού Θεάτρου Ραφή","ΒΡΥΚΟΛΑΞ ΕΝ ΚΑΒΕΙΡΩ",33513,null,{"v":30000,"d":"30,000.00 €"},null,"ΚΑΒΕΙΡΙΟ ΛΗΜΝΟΥ"]
[16,"ALCEDO-ΑΛΚΕΝΤΟ","Τα λουλούδια που βλέπουν",51797,{"v":15000,"d":"15,000.00 €"},null,null,"ΓΥΝΑΙΚΟΚΑΣΤΡΟ ΚΙΛΚΙΣ"]
[17,"Lάz - Las Α.Μ.Κ.Ε.","Ιώ: στο μικρό βουνί των μεγάλων θεών",52885,null,{"v":30000,"d":"30,000.00 €"},null,"ΣΑΜΟΘΡΑΚΗ. ΙΕΡΟ ΜΕΓΑΛΩΝ ΘΕΩΝ Ή ΜΟΥΣΕΙΟ"]
[18,"ΚΑΠΠΑ ΤΕΣΣΕΡΑ ΑΣΤΙΚΗ ΜΗ ΚΕΡΔΟΣΚΟΠΙΚΗ ΕΤΑΙΡΕΙΑ","ΜΟΛΙΣ ΚΟΙΜΗΘΕΙ ΤΟ ΚΥΜΑ",66472,{"v":15000,"d":"15,000.00 €"},null,null,"ΚΑΣΤΡΟ ΙΩΑΝΝΙΝΩΝ. ΙΤΣ ΚΑΛΕ"]
[19,"ΖΑΛΟΥ ΑΣΤΙΚΗ ΜΗ ΚΕΡΔΟΣΚΟΠΙΚΗ ΕΤΑΙΡΕΙΑ","IN BETWEEN   ΕΝ-ΔΙΑΜΕΣΩΣ",67319,{"v":15000,"d":"15,000.00 €"},null,null,"ΑΡΧ/ΚΟΣ ΧΩΡΟΣ ΓΟΡΤΥΝΑΣ"]
[20,"ARTRACK ΣΤΙΒΟΣ ΤΕΧΝΗΣ Α.Μ.Κ.Ε.","Αντίλαλοι του Χρόνου",67459,null,{"v":30000,"d":"30,000.00 €"},null,"ΑΡΧΑΙΟ ΘΕΑΤΡΟ ΔΩΔΩΝΗΣ"]
[21,"ΡΥΜΗ ΑΜΚΕ","Η μάνα μου η χήνα: Ένα σύγχρονο μουσικό παραμύθι",67486,{"v":15000,"d":"15,000.00 €"},null,null,"ΑΡΧΑΙΟΛΟΓΙΚΟ ΜΟΥΣΕΙΟ ΠΕΛΛΑΣ"]
[22,"PRO4arts Αστική Μη Κερδοσκοπική Εταιρεία","Ove vai? Konte Nano, Ove vai?",67630,null,{"v":30000,"d":"30,000.00 €"},null,"ΑΚΡΟΝΑΥΠΛΙΑ. ΚΑΣΤΡΟ ΠΑΛΑΜΗΔΙΟΥ"]
[23,"Α.Μ.Κ.Ε. ΔΙΕΘΝΗΣ ΔΡΑΣΗ","Η ΠΟΙΗΣΗ ΣΤΗ ΜΟΥΣΙΚΗ - Κρυμμένη Ποίηση | Μυστική Συναυλία",68157,null,{"v":30000,"d":"30,000.00 €"},null,"ΦΟΡΤΕΤΣΑ ΡΕΘΥΜΝΟ"]
[24,"POLYTONALITY - ΑΣΤΙΚΗ ΜΗ ΚΕΡΔΟΣΚΟΠΙΚΗ ΕΤΑΙΡΕΙΑ","Μοτίβα του τραύματος - Τέχνες και Ιστορία",68172,{"v":15000,"d":"15,000.00 €"},null,null,"ΑΡΧΑΙΟΛΟΓΙΚΟΣ ΧΩΡΟΣ ΠΛΕΥΡΩΝΑΣ"]
[]
[]
[{"$nulls":4},{"$f":"SUM(E6,E9,E13,E18,E20,E21,E23,E26)","v":{"v":120000,"d":"120,000.00 €"}},{"$f":"SUM(F3,F4,F5,F7,F8,F10,F11,F12,F14,F16,F17,F19,F22,F24,F25)","v":{"v":450000,"d":"450,000.00 €"}},{"$f":"SUM(G15)","v":{"v":60000,"d":"60,000.00 €"}},{"$f":"SUM(E29:G29)","v":{"v":630000,"d":"630,000.00 €"}}]

{"sheet":"θέατρο","index":1,"n_rows":25,"n_cols":8,"rows_kept":25,"merged":[[0,4,0,6]]}
["Α/Α","ΕΤΑΙΡΕΙΑ ΑΜΚΕ ","ΤΙΤΛΟΣ","Α.Μ.","ΚΑΤΗΓΟΡΙΑ ΧΡΗΜΑΤΟΔΟΤΗΣΗΣ",null,null,"ΧΩΡΟΣ"]
[{"$nulls":4},{"v":15000,"d":"15,000.00 €"},{"v":30000,"d":"30,000.00 €"},{"v":60000,"d":"60,000.00 €"}]
[1,"ΑΝΟΙΧΤΗ ΠΟΡΤΑ ΑΣΤΙΚΗ ΜΗ ΚΕΡΔΟΣΚΟΠΙΚΗ ΕΤΑΙΡΙΑ ΓΙΑ ΤΗΝ ΤΕΧΝΗ ΤΟΥ ΘΕΑΤΡΟΥ","\"Πάντων Μίμησις\"",453,null,null,{"v":60000,"d":"60,000.00 €"},"ΑΓΙΟΣ ΑΧΙΛΛΕΙΟΣ ΠΡΕΣΠΩΝ"]
[2,"ΚΑΛΛΙΤΕΧΝΙΚΗ ΕΤΑΙΡΕΙΑ ΑΡΓΩ","ο αρχαιολόγος",905,null,{"v":30000,"d":"30,000.00 €"},null,"ΑΡΧΑΙΟ ΘΕΑΤΡΟ ΜΑΡΩΝΕΙΑΣ "]
[3,"ART SYNDICATE-ΕΤΑΙΡΕΙΑ ΠΟΛΙΤΙΣΤΙΚΗΣ ΔΡΑΣΤΗΡΙΟΤΗΤΑΣ","τσελεμεντές",1320,{"v":15000,"d":"15,000.00 €"},null,null,"ΑΡΧΑΙΟΛΟΓΙΚΟ ΜΟΥΣΕΙΟ ΑΡΕΘΟΥΣΑΣ ΧΑΛΚΙΔΑ"]
[4,"ΕΤΑΙΡΕΙΑ ΘΕΑΤΡΟΥ","Ουρανός απ΄άλλους τόπους  Ρόδα στο μαντίλι",1335,{"v":15000,"d":"15,000.00 €"},null,null,"ΑΡΧΑΙΟΛΟΓΙΚΟ ΜΟΥΣΕΙΟ ΑΡΤΑΣ"]
[5,"ΑΣΤΙΚΗ ΜΗ ΚΕΡΔΟΣΚΟΠΙΚΗ ΕΤΑΙΡΕΙΑ ΣΥΓΧΡΟΝΩΝ ΔΗΜΙΟΥΡΓΙΚΩΝ ΠΑΡΑΣΤΑΤΙΚΩΝ ΤΕΧΝΩΝ ΜΟΥΣΙΚΩΝ ΚΑΙ ΕΙΚΑΣΤΙΚΩΝ ΕΡΓΩΝ","\"Ο μαγεμένος βοσκός του Σπυρίδωνος Περεσιάδη\"",1538,null,null,{"v":60000,"d":"60,000.00 €"},"ΑΡΧΑΙΟ ΘΕΑΤΡΟ ΣΑΜΟΥ (ΞΥΛΙΝΟ)"]
[6,"ΑΣΤΙΚΗ ΜΗ ΚΕΡΔΟΣΚΟΠΙΚΗ ΕΤΑΙΡΙΑ ΘΕΑΤΡΙΚΗΣ ΤΕΧΝΗΣ ΔΡOMΟΣ ΜΕ ΔΕΝΤΡΑ","ΤΑ ΠΑΛΙΟΚΟΡΙΤΣΑ              (Κάτσε καλά μη γίνεις τραγούδι)",1570,{"v":15000,"d":"15,000.00 €"},null,null,"ΚΑΣΤΡΟ ΛΑΜΙΑΣ"]
[7,"ΠΕΙΡΑΜΑΤΙΚΗ ΘΕΑΤΡΙΚΗ ΟΜΑΔΑ-ΑΣΤΙΚΗ ΜΗ ΚΕΡΔΟΣΚΟΠΙΚΗ ΕΤΑΙΡΕΙΑ","θα έρθουν καλύτερες μέρες",1978,null,{"v":30000,"d":"30,000.00 €"},null,"ΚΑΣΤΡΟ ΑΓΙΟΥ ΓΕΩΡΓΙΟΥ ΚΕΦΑΛΛΟΝΙΑ"]
[8,"4 FRONTAL","Ο Μουσακάς",2034,null,{"v":30000,"d":"30,000.00 €"},null,"ΜΕΤΟΧΙΑΚΟ ΣΥΓΚΡΟΤΗΜΑ ΝΕΩΝ ΦΛΟΓΗΤΩΝ"]
[9,"ΕΤΑΙΡEΙΑ ΘΕΑΤΡΟΥ XAΠΙ ΕΝΤ","Το δίκαιο",2043,null,null,{"v":60000,"d":"60,000.00 €"},"ΑΡΧΑΙΟ ΘΕΑΤΡΟ ΜΗΛΟΥ"]
[10,"ΤΕΧΝΗΣ ΟΝΕΙΡΑ","\"Κοινός Λόγος\"",3588,{"v":15000,"d":"15,000.00 €"},null,null,"ΑΡΧΑΙΟ ΘΕΑΤΡΟ ΟΡΧΟΜΕΝΟΥ ΑΡΚΑΔΙΑΣ"]
[11,"plays2place","\"ΑΝΟΛΟΚΛΗΡΩΤΑ ΠΟΙΗΜΑΤΑ\"  (\"POEMES INACHEVES\") (έχει τόνους)",3966,{"v":15000,"d":"15,000.00 €"},null,null,"ΕΠΤΑΠΥΡΓΙΟ"]
[12,"ΔΙΑΣΠΟΡΑ","Τα Κορίτσια της Εξόδου",4083,null,{"v":30000,"d":"30,000.00 €"},null,"ΞΕΝΟΚΡΑΤΕΙΟ ΑΡΧ/ΚΟ ΜΟΥΣΕΙΟ ΙΕΡΑΣ ΠΟΛΕΩΣ ΜΕΣΟΛΛΟΓΙΟΥ"]
[13,"ΟΜΟΤΕΧΝΟΝ ΑΣΤΙΚΗ ΜΗ ΚΕΡΔΟΣΚΟΠΙΚΗ ΕΤΑΙΡΕΙΑ","\"Οι απολογίες του Σωκράτη\"",12285,null,{"v":30000,"d":"30,000.00 €"},null,"ΑΡΧΑΙΟΛΟΓΙΚΟ ΜΟΥΣΕΙΟ ΑΙΑΝΗΣ ΚΟΖΑΝΗΣ"]
[14,"ΕΤΑΙΡΕΙΑ ΘΕΑΤΡΟΥ ΑΝΤΙΡΡΗΣΗ ΑΣΤΙΚΗ ΜΗ ΚΕΡΔΟΣΚΟΠΙΚΗ ΕΤΑΙΡΕΙΑ","Δημοπρασίες Φιλοσόφων",14602,null,{"v":30000,"d":"30,000.00 €"},null,"ΡΩΜΑΪΚΟ ΩΔΕΙΟ ΝΙΚΟΠΟΛΗΣ"]
[15,"Πολιτιστική Εταιρεία Intravenous Αστική Εταιρεία","Μήδεια/Έξοδος: ό,τι αγάπησα με σύντριψε στον ήλιο",14610,{"v":15000,"d":"15,000.00 €"},null,null,"ΗΡΑΙΟ ΠΕΡΑΧΩΡΑΣ"]
[16,"ΚΡΑΜΑ ΑΣΤΙΚΗ ΜΗ ΚΕΡΔΟΣΚΟΠΙΚΗ ΕΤΑΙΡΕΙΑ","Α.Ι.νιγμα",17969,{"v":15000,"d":"15,000.00 €"},null,null,"ΑΡΧΑΙΟ ΘΕΑΤΡΟ ΑΡΧΑΙΑΣ  ΗΛΙΔΑΣ"]
[17,"EXPERIMENTA Art Company ΑΣΤΙΚΗ ΜΗ ΚΕΡΔΟΣΚΟΠΙΚΗ ΕΤΑΙΡΕΙΑ","ΠΕΡΣΕΣ_ ΤΟ ΜΟΙΡΟΛΟΪ ΤΩΝ ΧΑΜΕΝΩΝ",66483,null,{"v":30000,"d":"30,000.00 €"},null,"ΑΡΧΑΙΟ ΘΕΑΤΡΟ ΦΙΛΙΠΠΩΝ ΚΑΒΑΛΑΣ"]
[18,"ArtCore Α.Μ.Κ.Ε.","Επιστροφή στο μέλλον",66537,{"v":15000,"d":"15,000.00 €"},null,null,"ΝΕΚΡΟΜΑΝΤΕΙΟ ΑΧΕΡΟΝΤΑ"]
[19,"Διεθνές Κέντρο Επιστημών,Πολιτισμού και Εκπαίδευσης ΟμήΓυρη","Οι ρίζες της πορτοκαλιάς – Ιστορίες που επιστρέφουν",66825,null,{"v":30000,"d":"30,000.00 €"},null,"ΑΡΧΑΙΟΛΟΓΙΚΟ ΜΟΥΣΕΙΟ ΗΡΑΚΛΕΙΟΥ"]
[20,"ΔΕΚΑΕΦΤΑ ΤΡΙΤΑ Αστική Μη Κερδοσκοπική Εταιρεία","voskos",67523,{"v":15000,"d":"15,000.00 €"},null,null,"ΜΟΥΣΕΙΟ ΒΥΖΑΝΤΙΝΟΥ ΠΟΛΙΤΙΣΜΟΥ ΘΕΣΣΑΛΟΝΙΚΗΣ"]
[21,"SUBSTANTIA ΑΣΤΙΚΗ ΜΗ ΚΕΡΔΟΣΚΟΠΙΚΗ ΕΤΑΙΡΕΙΑ","Τάμα",68204,{"v":15000,"d":"15,000.00 €"},null,null,"ΑΡΧΑΙΟΛΟΓΙΚΟΣ ΧΩΡΟΣ ΚΟΡΙΝΘΟΥ"]
[]
[{"$nulls":4},{"$f":"SUM(E5,E6,E8,E12,E13,E17,E18,E20,E22,E23)","v":{"v":150000,"d":"150,000.00 €"}},{"$f":"SUM(F9,F10,F14,F16,F19,F21,F4,F15)","v":{"v":240000,"d":"240,000.00 €"}},{"$f":"SUM(G3,G7,G11)","v":{"v":180000,"d":"180,000.00 €"}},{"$f":"SUM(E25:G25)","v":{"v":570000,"d":"570,000.00 €"}}]

{"sheet":"εικαστικά","index":2,"n_rows":12,"n_cols":9,"rows_kept":12,"merged":[[0,5,0,7]]}
["Α/Α",null,"ΕΤΑΙΡΕΙΑ ΑΜΚΕ ","ΤΙΤΛΟΣ","Α.Μ.","ΚΑΤΗΓΟΡΙΑ ΧΡΗΜΑΤΟΔΟΤΗΣΗΣ",null,null,"ΧΩΡΟΣ"]
[{"$nulls":5},{"v":15000,"d":"15,000.00 €"},{"v":30000,"d":"30,000.00 €"},{"v":60000,"d":"60,000.00 €"}]
[1,194,"3 137","Η ΜΝΗΜΗ ΤΟΥ ΝΕΡΟΥ: ΕΚΤΡΟΠΗ",4789,null,{"v":30000,"d":"30,000.00 €"},null,"ΝΕΩΡΙΑ ΑΡΧΑΙΟΛΟΓΙΚΟΥ ΧΩΡΟΥ ΟΙΝΙΑΔΩΝ ΑΙΤΩΛΟΑΚΑΡΝΑΝΙΑΣ"]
[2,203,"ΘΕΣΙΣ ΑΣΤΙΚΗ ΜΗ ΚΕΡΔΟΣΚΟΠΙΚΗ ΕΤΑΙΡΕΙΑ","ΜΗΤΕΡΑ ΑΡΑΧΝΗ",5316,null,{"v":30000,"d":"30,000.00 €"},null,"ΑΡΧΑ/ΚΟ ΜΟΥΣΕΙΟ ΘΕΣΣΑΛΟΝΙΚΗΣ"]
[3,206,"Κέντρο Μελέτης και Προστασίας της Πολιτιστικής και Φυσικής Κληρονομιάς στο Αιγαίο-Εικονικό Μουσείο Τήνου","ΣΤΑ ΒΗΜΑΤΑ ΤΟΥΣ… 127 ΧΡΟΝΙΑ ΜΕΤΑ",5347,null,{"v":30000,"d":"30,000.00 €"},null,"ΣΧΟΛΗ ΟΥΡΣΟΥΛΙΝΩΝ ΤΗΝΟΥ"]
[4,242,"ΠΕΙΡΑΜΑΤΙΚΟ ΕΡΓΑΣΤΗΡΙ ΜΕΛΕΤΗΣ ΚΑΙ ΕΡΕΥΝΑΣ ΓΙΑ ΤΗΝ ΠΟΛΙΤΙΚΗ ΤΗΝ ΟΙΚΟΝΟΜΙΑ ΚΑΙ ΤΟΝ ΠΟΛΙΤΙΣΜΟ ","\"Είναι γραφτό; Μακτούμπ\"",6554,null,{"v":30000,"d":"30,000.00 €"},null,"ΑΡΧ/ΚΟΣ ΧΩΡΟΣ ΖΩΝΗΣ ΑΛΕΞΑΝΔΡΟΥΠΟΛΗΣ"]
[5,265,"Polygreen Culture and Art Initiative - Awareness Raising Αστική Μη Κερδοσκοπική Εταιρεία","Κωνσταντίνος Βήτα:  Ο Χώρος και η Μνήμη",6922,null,{"v":30000,"d":"30,000.00 €"},null,"ΠΕΡΙΠΤΕΡΟ ΠΙΚΙΩΝΗ ΣΤΟΥΣ ΔΕΛΦΟΥΣ"]
[6,455,"ΑΝΑΚΟΛΟΥΘΑ","Model Collapse",52818,{"v":15000,"d":"15,000.00 €"},null,null,"ΑΡΧΑΙΟΛΟΓΙΚΟ ΜΟΥΣΕΙΟ ΕΡΕΤΡΙΑΣ"]
[7,466,"LOOX ΑΣΤΙΚΗ ΜΗ ΚΕΡΔΟΣΚΟΠΙΚΗ ΕΤΑΙΡΕΙΑ","Πολιτιστικό Σχέδιο Παράδοσης και Καινοτομίας: Εικονογραφία 2.0, NextGenerationCulturalTradition ",64641,{"v":15000,"d":"15,000.00 €"},null,null,"ΙΕΡΑ ΜΟΝΗ ΤΟΠΛΟΥ (Σητεία)"]
[8,487,"ΤΕΧΝΗ, ΓΚΡΑΦΙΤΙ ΣΤΗΝ ΠΟΛΗ","Όταν ο Νεο-Κλασικισμός συναντά τον Μετα-κλασικισμό",66605,{"v":15000,"d":"15,000.00 €"},null,null,"ΑΡΧΑΙΟΛΟΓΙΚΟ ΜΟΥΣΕΙΟ ΚΑΛΥΜΝΟΥ"]
[]
[{"$nulls":5},{"$f":"SUM(F8:F11)","v":{"v":45000,"d":"45,000.00 €"}},{"$f":"SUM(G3,G4,G5,G6,G7)","v":{"v":150000,"d":"150,000.00 €"}},null,{"$f":"SUM(F12:H12)","v":{"v":195000,"d":"195,000.00 €"}}]

{"sheet":"χορός","index":3,"n_rows":12,"n_cols":8,"rows_kept":12,"merged":[[0,4,0,6]]}
["Α/Α","ΕΤΑΙΡΕΙΑ ΑΜΚΕ ","ΤΙΤΛΟΣ","Α.Μ.","ΚΑΤΗΓΟΡΙΑ ΧΡΗΜΑΤΟΔΟΤΗΣΗΣ",null,null,"ΧΩΡΟΣ"]
[{"$nulls":4},{"v":15000,"d":"15,000.00 €"},{"v":30000,"d":"30,000.00 €"},{"v":60000,"d":"60,000.00 €"}]
[1,"ΟΜΑΔΑ ΣΥΓΧΡΟΝΟΥ ΧΟΡΟΥ ΠΡΟΣΧΗΜΑ – ΑΣΤΙΚΗ ΕΤΑΙΡΕΙΑ","Hounds of madness",345,null,{"v":30000,"d":"30,000.00 €"},null,"ΑΡΧΑΙΟΛΟΓΙΚΟ ΜΟΥΣΕΙΟ ΘΗΒΩΝ"]
[2,"«ΟΜΙΛΟΣ ΤΩΝ ΦΙΛΩΝ ΤΟΥ ΣΥΓΧΡΟΝΟΥ ΧΟΡΟΥ» (YELP DANCE Cο)","Οικειοποιήσεις: Ανασκαφή της Κίνησης",742,{"v":15000,"d":"15,000.00 €"},null,null,"ΑΡΧΑΙΟΛΟΓΙΚΟ ΜΟΥΣΕΙΟ ΝΕΜΕΑΣ"]
[3,"Ομάδα Παραστατικών Τεχνών Αθανασίας Κανελλοπούλου","\"SHATTERED GROUND\"",3970,{"v":15000,"d":"15,000.00 €"},null,null,"ΠΟΛΥΚΕΝΤΡΙΚΟ ΜΟΥΣΕΙΟ ΑΙΓΩΝ. ΣΥΝΝΕΝΟΗΣΗ ΜΕ ΤΗΝ ΕΦΑ ΓΙΑ ΤΟΝ ΑΚΡΙΒΕΣ ΧΩΡΟ"]
[4,"DAGIPOLI DANCE CO.","\"BACK, FRONT, BACK...\"",4510,null,{"v":30000,"d":"30,000.00 €"},null,"ΑΡΧΑΙΟΛΟΓΙΚΌ ΜΟΥΣΕΙΟ ΑΡΧΑΙΑΣ ΟΛΥΜΠΙΑΣ"]
[5,"ΣΙΝΚ ΑΠ ΠΡΟΝΤΑΞΙΟΝΣ - ΑΣΤΙΚΗ ΜΗ ΚΕΡΔΟΣΚΟΠΙΚΗ ΕΤΑΙΡΕΙΑ","FRIEND WITH THE MOUNTAIN | ΦΙΛΟΣ ΜΕ ΤΟ ΒΟΥΝΟ",6448,{"v":15000,"d":"15,000.00 €"},null,null,"ΑΡΧΑΙΟΛΟΓΙΚΟ ΜΟΥΣΕΙΟ ΙΩΑΝΝΙΝΩΝ"]
[6,"CYCLERE ΑΜΚΕ","Κομμάτια Γης",19001,null,{"v":30000,"d":"30,000.00 €"},null,"ΑΡΧΑΙΟΛΟΓΙΚΟ ΜΟΥΣΕΙΟ ΖΑΚΥΝΘΟΥ"]
[7,"ΟΜΑΔΑ ΧΟΡΟΥ ΒΑΡΒΑΡΑΣ ΜΠΑΡΔΑΚΑ ΑΣΤΙΚΗ ΜΗ ΚΕΡΔΟΣΚΟΠΙΚΗ ΕΤΑΙΡΙΑ","Hero",66466,{"v":15000,"d":"15,000.00 €"},null,null,"ΡΩΜΑΙΚΟ ΩΔΕΙΟ ΚΩ"]
[8,"ARS NOVA EXPERIMENTALIS ΕΤΑΙΡΙΑ ΤΕΧΝΗΣ ΚΑΙ ΠΟΛΙΤΙΣΜΟΥ ΑΜΚΕ","Παραπατήματα",66755,null,{"v":30000,"d":"30,000.00 €"},null,"Α' ΑΡΧΑΙΟ ΘΕΑΤΡΟ ΛΑΡΙΣΣΑΣ"]
[]
[{"$nulls":4},{"$f":"SUM(E4,E5,E7,E9)","v":{"v":60000,"d":"60,000.00 €"}},{"$f":"SUM(F3,F6,F8,F10)","v":{"v":120000,"d":"120,000.00 €"}},null,{"$f":"SUM(E12:G12)","v":{"v":180000,"d":"180,000.00 €"}}]

{"sheet":"παρ.δρασ.παιδ.εφηβ.","index":4,"n_rows":11,"n_cols":8,"rows_kept":11,"merged":[[0,4,0,6]]}
["Α/Α","ΕΤΑΙΡΕΙΑ ΑΜΚΕ ","ΤΙΤΛΟΣ","Α.Μ.","ΚΑΤΗΓΟΡΙΑ ΧΡΗΜΑΤΟΔΟΤΗΣΗΣ",null,null,"ΧΩΡΟΙ"]
[{"$nulls":4},{"v":15000,"d":"15,000.00 €"},{"v":30000,"d":"30,000.00 €"},{"v":60000,"d":"60,000.00 €"}]
[1,"ΑΣΤΙΚΗ ΜΗ ΚΕΡΔΟΣΚΟΠΙΚΗ ΕΤΑΙΡΕΙΑ - ΜΗ ΑΝΑΣΤΡΕΨΙΜΟΙ","PANDΩRA_25 // Μύθος --> ΑΙ Clitch the Past",2058,{"v":15000,"d":"15,000.00 €"},null,null,"ΝΑΟΣ ΑΠΟΛΛΩΝΑ ΜΗΤΡΟΠΟΛΗΣ ΚΑΡΔΙΤΣΑΣ"]
[2,"Elephas tiliensis","Αληθινή ιστορία ή ταξίδι στο νησί της σελήνης",3406,null,{"v":30000,"d":"30,000.00 €"},null,"ΑΡΧΑΙΟ ΘΕΑΤΡΟ ΔΗΜΗΤΡΙΑΔΑΣ"]
[3,"Apparat Athen","Τα γυάλινα βουνά και οι κοκκαλένιοι κάμποι",8091,null,null,{"v":60000,"d":"60,000.00 €"},"ΑΚΡΟΠΟΛΗ ΑΓΙΟΥ ΑΝΔΡΕΑ ΣΙΦΝΟΥ"]
[4,"CALD Productions","Sliding Slalom / Στρογγύλη",45351,null,{"v":30000,"d":"30,000.00 €"},null,"ΑΡΧΑΙΟΛΟΓΙΚΟΣ ΧΩΡΟΣ ΑΚΡΩΤΗΡΙΟΥ ΘΗΡΑΣ"]
[5,"Naif ΑΣΤΙΚΗ ΜΗ ΚΕΡΔΟΣΚΟΠΙΚΗ ΕΤΑΙΡΕΙΑ","Φθινοπωρινά νιάτα",66572,{"v":15000,"d":"15,000.00 €"},null,null,"ΟΘΩΜΑΝΙΚΟ ΤΕΜΕΝΟΣ ΟΣΜΑΝ ΣΑΑΧ (ΚΟΥΡΣΟΥΜ ΤΖΑΜΙ) ΤΡΙΚΑΛΑ"]
[6,"Harmonica αστική μη κερδοσκοπική εταιρία","Η ΔΙΑΘΗΚΗ",68173,{"v":15000,"d":"15,000.00 €"},null,null,"ΚΑΣΤΡΟ ΗΓΟΥΜΕΝΙΤΣΑΣ"]
[7,"ΘΕΑΤΡΙΚΗ ΟΜΑΔΑ MODODENTRO ΑΣΤΙΚΗ ΜΗ ΚΕΡΔΟΣΚΟΠΙΚΗ ΕΤΑΙΡΕΙΑ","Το στέμμα του πρίγκιπα και άλλες ιστορίες",68199,{"v":15000,"d":"15,000.00 €"},null,null,"ΚΑΣΤΡΟ ΛΑΜΙΑΣ"]
[]
[{"$nulls":4},{"$f":"SUM(E3,E7,E8,E9)","v":{"v":60000,"d":"60,000.00 €"}},{"$f":"SUM(F4:F10)","v":{"v":60000,"d":"60,000.00 €"}},{"$f":"SUM(G5:G10)","v":{"v":60000,"d":"60,000.00 €"}},{"$f":"SUM(E11:G11)","v":{"v":180000,"d":"180,000.00 €"}}]

{"sheet":"μουσικό θέατρο","index":5,"n_rows":6,"n_cols":8,"rows_kept":6,"merged":[[0,4,0,6]]}
["Α/Α","ΕΤΑΙΡΕΙΑ ΑΜΚΕ ","ΤΙΤΛΟΣ","Α.Μ.","ΚΑΤΗΓΟΡΙΑ ΧΡΗΜΑΤΟΔΟΤΗΣΗΣ",null,null,"ΧΩΡΟΣ"]
[{"$nulls":4},{"v":15000,"d":"15,000.00 €"},{"v":30000,"d":"30,000.00 €"},{"v":60000,"d":"60,000.00 €"}]
[1,"ΤΕΧΝΗ-ΨΥΧΗ","Έργηχος ή Η τελευταία κλωστή",20658,null,{"v":30000,"d":"30,000.00 €"},null,"ΑΡΧΑΙΟΛΟΓΙΚΟΣ ΧΩΡΟΣ ΑΒΔΗΡΩΝ"]
[2,"Performart Αστική Μη Κερδοσκοπική Εταιρεία","Η Διάσταση της Ιφιγένειας",67443,{"v":15000,"d":"15,000.00 €"},null,null,"ΖΙΝΖΙΡΛΙ ΤΖΑΜΙ ΣΕΡΡΕΣ"]
[]
[{"$nulls":4},{"$f":"SUM(E4:E5)","v":{"v":15000,"d":"15,000.00 €"}},{"$f":"SUM(F3)","v":{"v":30000,"d":"30,000.00 €"}},null,{"$f":"SUM(E6:G6)","v":{"v":45000,"d":"45,000.00 €"}}]

{"sheet":"Φύλλο5","index":6,"n_rows":0,"n_cols":0,"rows_kept":0}